bitfinex/quotes_BTCUSD_20250206
["timestamp","ask_amount","ask_price","bid_price","bid_amount"]
[1738838235304,2.06253589,98920.0,98919.0,0.00130838]
[1738838235529,0.151685,98889.0,98884.0,0.00022428]
[1738838235684,2.28848927,98889.0,98888.0,0.00032233]
[1738838236432,2.39099292,98889.0,98888.0,0.00032233]
[1738838236637,2.28848927,98889.0,98888.0,0.00032233]
[1738838236841,2.29844629,98889.0,98888.0,0.00132233]
[1738838236996,2.34771296,98889.0,98888.0,0.00132233]
[1738838237213,2.34771296,98889.0,98888.0,0.00432233]
[1738838237563,2.34771296,98889.0,98888.0,0.00132233]
[1738838237975,2.34871296,98889.0,98888.0,0.00132233]
[1738838238177,2.4814998,98889.0,98888.0,0.00132233]
[1738838238387,2.4814998,98889.0,98888.0,0.00032233]
[1738838238817,2.5617998,98889.0,98888.0,0.00032233]
[1738838239450,0.151741,98852.0,98850.0,0.00022428]
[1738838239652,1.42734161,98852.0,98850.0,0.00022428]
[1738838239894,1.42734161,98852.0,98851.0,0.01010289]
[1738838240147,1.27560061,98852.0,98851.0,0.01010289]
[1738838240408,1.50070061,98852.0,98851.0,0.01010289]
[1738838240608,1.60320426,98852.0,98851.0,0.01010289]
[1738838240821,1.66511825,98852.0,98851.0,0.01010289]
[1738838241024,1.81985925,98852.0,98851.0,0.01010289]
[1738838241450,1.81685925,98852.0,98851.0,0.01010289]
[1738838241659,1.81985925,98852.0,98851.0,0.01010289]
[1738838241863,1.66511825,98852.0,98851.0,0.01010289]
[1738838242577,1.65247093,98852.0,98851.0,0.01010289]
[1738838243243,1.65247093,98852.0,98851.0,0.01032717]
[1738838244214,1.62215298,98852.0,98851.0,0.01032717]
[1738838247591,1.62215298,98852.0,98851.0,0.01430101]
[1738838247853,1.77389398,98852.0,98851.0,0.01430101]
[1738838248079,1.77389398,98852.0,98851.0,0.01032717]
[1738838248725,1.75494526,98852.0,98851.0,0.01032717]
[1738838250006,1.75594526,98852.0,98851.0,0.01032717]
[1738838251138,1.77477058,98852.0,98851.0,0.01032717]
[1738838251349,1.77577058,98852.0,98851.0,0.01032717]
[1738838251637,0.151786,98823.0,98822.0,0.00022428]
[1738838251844,2.28859027,98823.0,98822.0,0.00068692]
[1738838253321,2.28859027,98823.0,98822.0,0.00168692]
[1738838254481,2.28959027,98823.0,98822.0,0.00168692]
[1738838255092,2.61469027,98823.0,98822.0,0.00168692]
[1738838258164,2.6335067,98823.0,98822.0,0.00168692]
[1738838258953,2.65078138,98823.0,98822.0,0.00168692]
[1738838259152,2.6335067,98823.0,98822.0,0.00168692]
[1738838260498,2.67627808,98823.0,98822.0,0.00168692]
[1738838262186,2.67627808,98823.0,98822.0,0.00068692]
[1738838262623,2.67727808,98823.0,98822.0,0.00068692]
[1738838263051,2.67627808,98823.0,98822.0,0.00068692]
[1738838263261,2.68127808,98823.0,98822.0,0.00068692]
[1738838263459,2.78378173,98823.0,98822.0,0.00068692]
[1738838265356,0.1,98812.0,98810.0,0.0016004]
[1738838265561,0.25430765,98811.0,98810.0,0.0016004]
[1738838266847,0.31589546,98811.0,98810.0,0.0016004]
[1738838267001,0.64099546,98811.0,98810.0,0.0016004]
[1738838267392,0.71679546,98811.0,98810.0,0.0016004]
[1738838267595,0.73733699,98811.0,98810.0,0.0016004]
[1738838267796,0.74724277,98811.0,98810.0,0.0016004]
[1738838268033,0.84974642,98811.0,98810.0,0.0016004]
[1738838268382,0.74724277,98811.0,98810.0,0.0016004]
[1738838269191,0.74824277,98811.0,98810.0,0.0016004]
[1738838269390,0.75224277,98811.0,98810.0,0.0016004]
[1738838269598,0.74824277,98811.0,98810.0,0.0016004]
[1738838269801,0.73558843,98811.0,98810.0,0.0016004]
[1738838270008,0.73958843,98811.0,98810.0,0.0016004]
[1738838270797,0.76434299,98811.0,98810.0,0.0016004]
[1738838271291,0.73958843,98811.0,98810.0,0.0016004]
[1738838271499,0.63334112,98811.0,98810.0,0.0016004]
[1738838272545,0.63234112,98811.0,98810.0,0.0016004]
[1738838272909,0.62934112,98811.0,98810.0,0.0016004]
[1738838273230,0.63234112,98811.0,98810.0,0.0016004]
[1738838273895,0.73484477,98811.0,98810.0,0.0016004]
[1738838274089,0.73184477,98811.0,98810.0,0.0016004]
[1738838274326,0.64199809,98811.0,98810.0,0.0016004]
[1738838274531,0.64099809,98811.0,98810.0,0.0016004]
[1738838274900,0.64199809,98811.0,98810.0,0.0016004]
[1738838275301,0.64099809,98811.0,98810.0,0.0016004]
[1738838275580,0.64699809,98811.0,98810.0,0.0016004]
[1738838275753,0.64399809,98811.0,98810.0,0.0016004]
[1738838276221,0.64799809,98811.0,98810.0,0.0016004]
[1738838276451,0.64399809,98811.0,98810.0,0.0016004]
[1738838276683,0.65199809,98811.0,98810.0,0.0016004]
[1738838276912,0.64399809,98811.0,98810.0,0.0016004]
[1738838277143,0.64099809,98811.0,98810.0,0.0016004]
[1738838277382,0.64999809,98811.0,98810.0,0.0016004]
[1738838277611,0.64999809,98811.0,98810.0,0.0017073]
[1738838277843,0.64899809,98811.0,98810.0,0.0017073]
[1738838278230,0.65099809,98811.0,98810.0,0.0017073]
[1738838278661,0.64099809,98811.0,98810.0,0.0017073]
[1738838278904,0.64499809,98811.0,98810.0,0.0017073]
[1738838279111,0.04993347,98811.0,98810.0,0.0809073]
[1738838279343,0.04993347,98811.0,98810.0,0.2327133]
[1738838279603,0.05793347,98811.0,98810.0,0.09108086]
[1738838279818,0.04993347,98811.0,98810.0,0.08504056]
[1738838280052,0.05793347,98811.0,98810.0,0.08504056]
[1738838280272,1.0213757,98812.0,98810.0,0.23684656]
[1738838280542,0.002,98811.0,98810.0,0.15764656]
[1738838280998,1.0213757,98812.0,98810.0,0.15764656]
[1738838281500,1.0213757,98812.0,98810.0,0.15964656]
[1738838281989,1.0213757,98812.0,98810.0,0.15764656]
[1738838282204,1.0213757,98812.0,98810.0,0.15964656]
[1738838282462,1.0223757,98812.0,98810.0,0.15964656]
[1738838282691,1.0213757,98812.0,98810.0,0.15964656]
[1738838282893,1.0223757,98812.0,98810.0,0.15964656]
[1738838283922,1.0223757,98812.0,98810.0,0.15764656]
[1738838284140,1.0223757,98812.0,98810.0,0.16064656]
[1738838284528,3.5223757,98812.0,98810.0,0.16064656]
[1738838284729,3.5223757,98812.0,98810.0,0.15764656]
[1738838284953,3.5223757,98812.0,98810.0,0.1565133]
[1738838285133,3.5223757,98812.0,98810.0,0.16673432]
[1738838285368,3.5213757,98812.0,98810.0,0.16673432]
[1738838285577,3.5223757,98812.0,98810.0,0.16673432]
[1738838287724,3.5223757,98812.0,98810.0,0.0047073]
[1738838287932,3.6741797,98812.0,98810.0,0.0047073]
[1738838288570,3.6741797,98812.0,98810.0,0.0017073]
[1738838288782,0.10250365,98811.0,98810.0,0.0017073]
[1738838288989,0.10250365,98811.0,98810.0,0.0037073]
[1738838290081,0.10250365,98811.0,98810.0,0.0017073]
[1738838290308,0.25430765,98811.0,98810.0,0.0017073]
[1738838290556,0.57940765,98811.0,98810.0,0.0027073]
[1738838291019,0.57940765,98811.0,98810.0,0.0017073]
[1738838291253,0.57940765,98811.0,98810.0,0.0027073]
[1738838292657,0.59852715,98811.0,98810.0,0.0027073]
[1738838293147,0.60152715,98811.0,98810.0,0.0017073]
[1738838293396,0.66180765,98811.0,98810.0,0.0017073]
[1738838293640,0.67000765,98811.0,98810.0,0.0017073]
[1738838293888,0.67300765,98811.0,98810.0,0.0017073]
[1738838294126,0.68023869,98811.0,98810.0,0.0017073]
[1738838294382,0.68123869,98811.0,98810.0,0.0017073]
[1738838294866,0.7005636,98811.0,98810.0,0.0017073]
[1738838295332,0.7015636,98811.0,98810.0,0.0017073]
[1738838295574,0.7045636,98811.0,98810.0,0.0017073]
[1738838295812,0.7015636,98811.0,98810.0,0.0017073]
[1738838296302,0.7045636,98811.0,98810.0,0.0017073]
[1738838296556,0.7493636,98811.0,98810.0,0.0017073]
[1738838296775,0.87477558,98811.0,98810.0,0.0017073]
[1738838296984,0.87577558,98811.0,98810.0,0.0017073]
[1738838297434,0.232337,98790.0,98789.0,0.00022428]
[1738838297641,2.84846618,98790.0,98789.0,0.00022428]
[1738838298719,2.91617451,98790.0,98789.0,0.00022428]
[1738838298926,3.06663723,98790.0,98789.0,0.00022428]
[1738838299561,3.07263723,98790.0,98789.0,0.00022428]
[1738838299796,3.17900952,98790.0,98789.0,0.00022428]
[1738838300008,3.18700952,98790.0,98789.0,0.00022428]
[1738838300211,3.10750587,98790.0,98789.0,0.00022428]
[1738838300413,3.09850587,98790.0,98789.0,0.00022428]
[1738838300833,3.10050587,98790.0,98789.0,0.00022428]
[1738838301077,3.1609382,98790.0,98789.0,0.00022428]
[1738838301303,0.380374,98766.0,98765.0,7.0]
[1738838301518,3.0045589,98766.0,98765.0,7.0]
[1738838301727,3.0045589,98766.0,98765.0,7.00414045]
[1738838302408,3.05369139,98766.0,98765.0,7.00414045]
[1738838302630,3.05569139,98766.0,98765.0,7.00414045]
[1738838302841,3.06169139,98766.0,98765.0,7.00414045]
[1738838303896,3.05969139,98766.0,98765.0,7.00414045]
[1738838304319,3.06169139,98766.0,98765.0,7.00414045]
[1738838304736,3.05369139,98766.0,98765.0,7.00414045]
[1738838304936,3.06169139,98766.0,98765.0,7.00414045]
[1738838305136,3.05569139,98766.0,98765.0,7.00414045]
[1738838305569,3.06169139,98766.0,98765.0,7.00414045]
[1738838305784,3.03146723,98766.0,98765.0,7.00414045]
[1738838308190,3.02546723,98766.0,98765.0,7.00414045]
[1738838308430,3.02346723,98766.0,98765.0,7.00414045]
[1738838308640,3.02946723,98766.0,98765.0,7.00414045]
[1738838308855,3.02546723,98766.0,98765.0,7.00414045]
[1738838309189,3.03146723,98766.0,98765.0,7.00414045]
[1738838310203,2.74281323,98766.0,98765.0,7.00414045]
[1738838310381,2.6239049,98766.0,98765.0,7.00414045]
[1738838310581,2.6219049,98766.0,98765.0,7.00414045]
[1738838310990,2.6179049,98766.0,98765.0,7.00414045]
[1738838311191,2.6179049,98766.0,98765.0,7.00424735]
[1738838311538,2.6219049,98766.0,98765.0,7.00424735]
[1738838311744,2.6169049,98766.0,98765.0,7.00424735]
[1738838312109,2.6219049,98766.0,98765.0,7.00424735]
[1738838312339,2.6209049,98766.0,98765.0,7.00424735]
[1738838312537,2.6219049,98766.0,98765.0,7.00424735]
[1738838312754,1.50147633,98766.0,98765.0,7.00424735]
[1738838312957,1.34725142,98766.0,98765.0,7.00424735]
[1738838313435,1.34725142,98766.0,98765.0,7.08594735]
[1738838313924,1.34625142,98766.0,98765.0,7.08594735]
[1738838314278,1.34825142,98766.0,98765.0,7.08594735]
[1738838314489,1.0213757,98779.0,98766.0,0.15]
[1738838314706,1.0213757,98779.0,98778.0,0.151855]
[1738838315104,1.0213757,98779.0,98778.0,0.1559791]
[1738838315305,0.32487572,98789.0,98778.0,0.1559791]
[1738838315306,1.34625142,98789.0,98788.0,0.15184]
[1738838315731,1.34625142,98789.0,98788.0,0.1559632]
[1738838317172,1.34625142,98789.0,98788.0,0.1569632]
[1738838318798,1.60059307,98789.0,98788.0,0.0051232]
[1738838319156,1.60059307,98789.0,98788.0,0.001]
[1738838319980,1.44875507,98789.0,98788.0,0.001]
[1738838320159,1.44875507,98789.0,98788.0,0.15284]
[1738838320361,1.34625142,98789.0,98788.0,0.15184]
[1738838320876,1.34625142,98789.0,98788.0,0.1559632]
[1738838321696,1.34625142,98789.0,98788.0,0.1569632]
[1738838323130,1.34625142,98789.0,98788.0,0.1559632]
[1738838323332,1.34625142,98789.0,98788.0,0.1569632]
[1738838323969,1.34647592,98789.0,98788.0,0.1559632]
[1738838324175,1.34647592,98789.0,98788.0,0.1569632]
[1738838324592,1.34647592,98789.0,98788.0,0.1559632]
[1738838325023,1.34647592,98789.0,98788.0,0.1569632]
[1738838326058,1.34647592,98789.0,98788.0,0.15184]
[1738838326274,1.34647592,98789.0,98779.0,0.137596]
[1738838326483,1.34647592,98789.0,98788.0,0.001]
[1738838326901,1.34647592,98789.0,98783.0,0.151847]
[1738838327116,1.34647592,98789.0,98788.0,0.00456056]
[1738838327316,1.34647592,98789.0,98784.0,0.151846]
[1738838327540,1.34647592,98789.0,98788.0,0.00456056]
[1738838327747,1.34647592,98789.0,98788.0,0.001]
[1738838328496,1.34647592,98789.0,98788.0,0.00556056]
[1738838328947,1.49831392,98789.0,98788.0,0.00556056]
[1738838329149,1.49831392,98789.0,98788.0,0.00456056]
[1738838329457,1.49831392,98789.0,98783.0,0.151847]
[1738838329674,1.49831592,98789.0,98782.0,0.151848]
[1738838329876,1.34647592,98789.0,98779.0,0.137596]
[1738838330136,1.34647592,98789.0,98785.0,0.151843]
[1738838330335,1.34647592,98789.0,98788.0,0.001]
[1738838330605,1.49831392,98789.0,98788.0,0.001]
[1738838330820,0.151842,98787.0,98781.0,0.151849]
[1738838331030,1.34647592,98789.0,98779.0,0.137596]
[1738838331331,0.202461,98785.0,98782.0,0.00456118]
[1738838331526,0.202455,98787.0,98779.0,0.137596]
[1738838331725,0.202464,98783.0,98779.0,0.137596]
[1738838331924,0.202464,98783.0,98774.0,0.151861]
[1738838331925,0.151851,98781.0,98774.0,0.151861]
[1738838332081,0.151848,98783.0,98780.0,0.00456138]
[1738838332290,0.20246,98785.0,98775.0,0.151859]
[1738838332492,0.32487572,98785.0,98781.0,0.00456128]
[1738838332684,0.47672072,98785.0,98778.0,0.151855]
[1738838332886,0.32487572,98785.0,98773.0,0.137596]
[1738838333095,0.151847,98784.0,98776.0,0.151858]
[1738838333298,0.151847,98784.0,98777.0,0.151856]
[1738838333548,0.151846,98784.0,98777.0,0.00456169]
[1738838333749,0.151846,98784.0,98781.0,0.001]
[1738838334275,0.151846,98784.0,98777.0,0.151856]
[1738838334480,0.32487572,98785.0,98781.0,0.151851]
[1738838334686,0.32487572,98785.0,98782.0,0.151849]
[1738838334858,0.32487572,98785.0,98783.0,0.151847]
[1738838335504,0.32487572,98785.0,98784.0,0.00456097]
[1738838335718,0.47671972,98785.0,98784.0,0.00456097]
[1738838335906,0.47671972,98785.0,98776.0,0.151857]
[1738838335907,0.151848,98783.0,98776.0,0.151857]
[1738838336057,0.151848,98783.0,98777.0,0.001]
[1738838336461,0.32487572,98785.0,98773.0,0.35035958]
[1738838336661,0.151847,98784.0,98776.0,0.151858]
[1738838337431,0.32487572,98785.0,98776.0,0.151858]
[1738838337670,0.151846,98784.0,98777.0,0.151856]
[1738838338159,0.32487572,98785.0,98774.0,0.202482]
[1738838338360,0.151846,98784.0,98776.0,0.151858]
[1738838338511,0.32487572,98785.0,98773.0,0.14887758]
[1738838338866,0.32487572,98785.0,98784.0,0.151846]
[1738838340117,0.32487572,98785.0,98784.0,0.152846]
[1738838342632,0.32487572,98785.0,98784.0,0.001]
[1738838343467,0.47671972,98785.0,98784.0,0.001]
[1738838343681,0.57922337,98785.0,98784.0,0.001]
[1738838345026,0.58022337,98785.0,98784.0,0.001]
[1738838345231,0.42737937,98785.0,98770.0,0.137596]
[1738838345410,0.202473,98779.0,98770.0,0.137596]
[1738838345541,0.151865,98772.0,98771.0,0.00689828]
[1738838345746,0.10250365,98778.0,98765.0,7.0001069]
[1738838346017,0.151866,98772.0,98771.0,0.00689828]
[1738838346218,0.151867,98771.0,98765.0,7.0001069]
[1738838346357,0.202478,98776.0,98765.0,7.0001069]
[1738838346563,0.15187,98769.0,98765.0,7.0001069]
[1738838346795,1.0213757,98769.0,98765.0,7.0001069]
[1738838348978,1.0213757,98769.0,98768.0,0.151871]
[1738838349391,1.0213757,98769.0,98768.0,0.197471]
[1738838350013,1.0213757,98769.0,98768.0,0.347471]
[1738838350224,1.0213757,98769.0,98768.0,0.47297465]
[1738838350731,1.0213757,98769.0,98768.0,0.47989812]
[1738838351120,1.0223757,98769.0,98768.0,0.47989812]
[1738838351648,1.0233757,98769.0,98768.0,0.48189812]
[1738838352236,1.0233757,98769.0,98768.0,0.47989812]
[1738838352438,1.0233757,98769.0,98768.0,0.49203613]
[1738838354146,1.0233757,98769.0,98768.0,0.32093248]
[1738838354348,1.0233757,98769.0,98768.0,0.16079447]
[1738838355689,1.0233757,98769.0,98768.0,0.15879447]
[1738838355892,1.0233757,98769.0,98768.0,0.16079447]
[1738838356687,1.0213757,98769.0,98768.0,0.00892347]
[1738838357022,1.0213757,98769.0,98768.0,0.16079447]
[1738838357310,1.0223757,98769.0,98768.0,0.16279447]
[1738838357604,1.0213757,98769.0,98768.0,0.00692347]
[1738838357822,1.0213757,98769.0,98768.0,0.00892347]
[1738838358025,1.0213757,98769.0,98768.0,0.004]
[1738838358225,1.0213757,98769.0,98768.0,0.01089858]
[1738838358437,1.0213757,98769.0,98768.0,0.002]
[1738838358667,1.0213757,98769.0,98768.0,0.01189858]
[1738838358798,1.0213757,98769.0,98768.0,0.005]
[1738838359000,1.0213757,98769.0,98768.0,0.01189858]
[1738838359226,1.0213757,98769.0,98768.0,0.004]
[1738838359424,1.0213757,98769.0,98768.0,0.01189858]
[1738838359624,1.0213757,98769.0,98768.0,0.156871]
[1738838359828,1.0213757,98769.0,98768.0,0.15977602]
[1738838360038,1.0213757,98769.0,98768.0,0.16177602]
[1738838360233,1.0213757,98769.0,98768.0,0.16188272]
[1738838360782,1.0213757,98769.0,98768.0,0.16088272]
[1738838360943,1.0213757,98769.0,98768.0,0.15988272]
[1738838361143,1.0213757,98769.0,98768.0,0.00801172]
[1738838361352,1.0213757,98769.0,98768.0,0.01001172]
[1738838361595,1.0213757,98769.0,98768.0,0.16188272]
[1738838361981,1.0213757,98769.0,98768.0,0.16088272]
[1738838362382,1.0213757,98769.0,98768.0,0.16188272]
[1738838363641,1.0213757,98769.0,98768.0,0.15988272]
[1738838363798,1.0213757,98769.0,98768.0,0.16188272]
[1738838364369,1.0213757,98769.0,98768.0,0.15888272]
[1738838364598,1.0213757,98769.0,98768.0,0.16188272]
[1738838365027,1.0213757,98769.0,98768.0,0.16088272]
[1738838365435,1.0213757,98769.0,98768.0,0.16188272]
[1738838371261,1.0213757,98769.0,98768.0,0.15988272]
[1738838371421,1.0213757,98769.0,98768.0,0.15888272]
[1738838371628,1.0213757,98769.0,98768.0,0.16188272]
[1738838379210,0.47672172,98784.0,98774.0,0.15186]
[1738838379423,0.0751,98782.0,98770.0,0.137596]
[1738838379630,0.0484,98781.0,98775.0,0.0063278]
[1738838379832,0.09769684,98781.0,98770.0,0.137596]
[1738838380050,0.47672872,98780.0,98770.0,0.137596]
[1738838380276,0.151858,98777.0,98771.0,0.00632961]
[1738838380502,0.32487572,98780.0,98771.0,0.00632961]
[1738838380911,0.04929684,98779.0,98771.0,0.00632961]
[1738838381333,0.04929684,98779.0,98772.0,0.151864]
[1738838381538,0.04929684,98779.0,98773.0,0.00632928]
[1738838381753,0.04929684,98779.0,98770.0,0.289462]
[1738838381880,0.04929684,98779.0,98771.0,0.15819561]
[1738838382311,0.01896032,98778.0,98771.0,0.15819561]
[1738838382631,0.01896032,98778.0,98772.0,0.151864]
[1738838383078,0.01896032,98778.0,98773.0,0.00632928]
[1738838383645,0.04930787,98777.0,98771.0,0.151866]
[1738838384008,0.10250365,98776.0,98772.0,0.00632944]
[1738838384233,0.10250365,98776.0,98770.0,0.137596]
[1738838384633,0.10250365,98776.0,98771.0,0.00632961]
[1738838384886,0.01896032,98775.0,98771.0,0.00632961]
[1738838385028,0.151861,98774.0,98770.0,0.137596]
[1738838385256,0.151861,98774.0,98771.0,0.00632961]
[1738838385257,0.17760365,98773.0,98771.0,0.00632961]
[1738838385448,0.0751,98772.0,98768.0,0.0001067]
[1738838385690,0.10250365,98771.0,98768.0,0.0001067]
[1738838385872,0.151869,98769.0,98768.0,0.0001067]
[1738838386076,0.25437265,98769.0,98768.0,0.0001067]
[1738838386278,0.27333297,98769.0,98768.0,0.0001067]
[1738838386479,0.35543297,98769.0,98768.0,0.0001067]
[1738838387652,0.38777336,98769.0,98768.0,0.0001067]
[1738838388223,0.38577336,98769.0,98768.0,0.0001067]
[1738838389197,0.38777336,98769.0,98768.0,0.0001067]
[1738838389494,0.23590436,98769.0,98768.0,0.0001067]
[1738838389781,0.38777336,98769.0,98768.0,0.0001067]
[1738838390532,0.38577336,98769.0,98768.0,0.0001067]
[1738838390747,0.38777336,98769.0,98768.0,0.0001067]
[1738838390974,0.38577336,98769.0,98768.0,0.0001067]
[1738838391216,0.38677336,98769.0,98768.0,0.0001067]
[1738838391444,0.38977336,98769.0,98768.0,0.0001067]
[1738838391964,0.38577336,98769.0,98768.0,0.0001067]
[1738838392195,0.43797336,98769.0,98768.0,0.0001067]
[1738838392936,0.45063439,98769.0,98768.0,0.0001067]
[1738838393208,0.45163439,98769.0,98768.0,0.0001067]
[1738838394951,0.77651011,98769.0,98768.0,0.0001067]
[1738838395929,0.77651011,98769.0,98768.0,0.00586353]
[1738838396180,0.77651011,98769.0,98768.0,0.0001067]
[1738838396838,0.76384908,98769.0,98768.0,0.0001067]
[1738838398825,0.76384908,98769.0,98768.0,0.0058649]
[1738838399064,0.76384908,98769.0,98768.0,0.0001067]
[1738838399274,0.76384908,98769.0,98768.0,0.0058649]
[1738838399610,0.76284908,98769.0,98768.0,0.0058649]
[1738838399836,0.76384908,98769.0,98768.0,0.0058649]
[1738838400020,0.76084908,98769.0,98768.0,0.0058649]
[1738838400218,0.76384908,98769.0,98768.0,0.0058649]
[1738838400722,0.61198008,98769.0,98768.0,0.0058649]
[1738838400932,0.56278008,98769.0,98768.0,0.0058649]
[1738838401384,0.37817643,98769.0,98768.0,0.0058649]
[1738838401602,0.37517643,98769.0,98768.0,0.0058649]
[1738838402026,0.37717643,98769.0,98768.0,0.0058649]
[1738838402237,0.34683604,98769.0,98768.0,0.0058649]
[1738838402636,0.34583604,98769.0,98768.0,0.0058649]
[1738838405055,0.34583604,98769.0,98768.0,0.1577359]
[1738838405838,0.34583604,98769.0,98768.0,0.0058649]
[1738838406346,0.34383604,98769.0,98768.0,0.0058649]
[1738838406528,0.34383604,98769.0,98768.0,0.1577359]
[1738838406733,0.34383604,98769.0,98768.0,0.1587359]
[1738838406734,0.01896032,98769.0,98768.0,0.1587359]
[1738838407208,0.01896032,98769.0,98768.0,0.1597359]
[1738838408490,0.01896032,98769.0,98768.0,0.0078649]
[1738838408669,0.01896032,98769.0,98768.0,0.1597359]
[1738838411776,0.01896032,98769.0,98768.0,0.1587359]
[1738838411995,0.01896032,98769.0,98768.0,0.1597359]
[1738838412568,0.01896032,98769.0,98768.0,0.1587359]
[1738838412769,1.0213757,98774.0,98773.0,0.151863]
[1738838413186,1.0213757,98774.0,98773.0,0.1570913]
[1738838414280,1.0213757,98774.0,98773.0,0.1580913]
[1738838415366,0.32487572,98780.0,98779.0,0.151854]
[1738838415816,0.32487572,98780.0,98779.0,0.15707377]
[1738838417570,0.32487572,98780.0,98779.0,0.15808603]
[1738838417778,0.32487572,98780.0,98779.0,0.16008603]
[1738838418104,0.32487572,98780.0,98779.0,0.16108603]
[1738838418515,0.32487572,98780.0,98779.0,0.16007377]
[1738838418752,1.0213757,98784.0,98783.0,0.151847]
[1738838419143,1.0213757,98784.0,98783.0,0.15702578]
[1738838429706,1.0213757,98784.0,98783.0,0.158038]
[1738838430912,0.0002245,98789.0,98788.0,0.30184]
[1738838431118,0.0002245,98789.0,98788.0,0.30700802]
[1738838432009,0.0002245,98789.0,98788.0,0.30900802]
[1738838433057,0.0012245,98789.0,98788.0,0.31100802]
[1738838433266,0.0012245,98789.0,98788.0,0.43651167]
[1738838438275,0.0012245,98789.0,98788.0,0.48191167]
[1738838438493,0.0012245,98789.0,98788.0,0.49191167]
[1738838438941,0.0012245,98789.0,98788.0,0.48991167]
[1738838439143,0.0012245,98789.0,98788.0,0.56571167]
[1738838439349,0.0002245,98789.0,98788.0,0.56571167]
[1738838439725,0.0012245,98789.0,98788.0,0.56771167]
[1738838440524,0.0012245,98789.0,98788.0,0.56571167]
[1738838440732,0.0012245,98789.0,98788.0,0.56871167]
[1738838447418,5e-07,98789.0,98788.0,0.56871167]
[1738838454712,5e-07,98789.0,98788.0,0.49291167]
[1738838455056,5e-07,98789.0,98788.0,0.49301837]
[1738838455469,0.00022458,98789.0,98788.0,0.49301837]
[1738838458529,0.00022458,98789.0,98788.0,0.52297214]
[1738838461110,0.00022458,98789.0,98788.0,0.44457214]
[1738838461337,0.12502458,98789.0,98788.0,0.01027472]
[1738838461762,0.12502458,98789.0,98788.0,0.0051067]
[1738838461961,0.12502458,98789.0,98788.0,0.01233708]
[1738838462084,0.12502408,98789.0,98788.0,0.0031067]
[1738838462286,0.18794388,98789.0,98788.0,0.01633031]
[1738838462490,0.18794388,98789.0,98788.0,0.0091067]
[1738838462700,0.18694388,98789.0,98788.0,0.00733031]
[1738838462897,0.18694388,98789.0,98788.0,0.00933031]
[1738838463099,0.18694388,98789.0,98788.0,0.01233031]
[1738838463347,0.18694388,98789.0,98788.0,0.00933031]
[1738838463501,0.18694388,98789.0,98788.0,0.00733031]
[1738838463696,0.18694388,98789.0,98788.0,0.01133031]
[1738838464394,0.13714388,98789.0,98788.0,0.01234252]
[1738838464600,0.13714388,98789.0,98788.0,0.01133031]
[1738838464811,0.07522408,98789.0,98788.0,0.01133031]
[1738838465026,0.07522408,98789.0,98788.0,0.00833031]
[1738838465489,0.07522408,98789.0,98788.0,0.01133031]
[1738838465693,0.07522408,98789.0,98788.0,0.01033031]
[1738838465965,0.07522408,98789.0,98788.0,0.01433031]
[1738838466218,0.07522408,98789.0,98788.0,0.00733031]
[1738838466905,0.07522408,98789.0,98788.0,0.00933031]
[1738838467239,0.12132408,98789.0,98788.0,0.16117031]
[1738838467439,0.1705361,98789.0,98788.0,0.16117031]
[1738838468664,0.1705361,98789.0,98788.0,0.16017031]
[1738838468944,0.1705361,98789.0,98788.0,0.16117031]
[1738838469177,0.49541182,98789.0,98788.0,0.00933031]
[1738838469376,0.49541182,98789.0,98788.0,0.00833031]
[1738838469580,0.59791547,98789.0,98788.0,0.0011067]
[1738838469771,0.59791547,98789.0,98788.0,0.0021067]
[1738838470162,0.6105738,98789.0,98788.0,0.0011067]
[1738838470403,0.6115738,98789.0,98788.0,0.0011067]
[1738838470980,0.6105738,98789.0,98788.0,0.0011067]
[1738838471185,0.6115738,98789.0,98788.0,0.0001067]
[1738838471359,0.6155738,98789.0,98788.0,0.0001067]
[1738838471983,0.6185738,98789.0,98788.0,0.0001067]
[1738838472762,0.6105738,98789.0,98788.0,0.0001067]
[1738838472953,0.6115738,98789.0,98788.0,0.0001067]
[1738838473157,0.6145738,98789.0,98788.0,0.0001067]
[1738838473569,0.6135738,98789.0,98788.0,0.0001067]
[1738838473772,0.51307015,98789.0,98788.0,0.0001067]
[1738838473998,0.51307015,98789.0,98788.0,0.0074036]
[1738838474375,0.50807015,98789.0,98788.0,0.0001067]
[1738838474581,0.50807015,98789.0,98788.0,0.00740999]
[1738838474782,0.51407015,98789.0,98788.0,0.00840999]
[1738838474983,0.50807015,98789.0,98788.0,0.00740999]
[1738838475225,0.49541182,98789.0,98788.0,0.00740999]
[1738838475466,0.49641182,98789.0,98788.0,0.00740999]
[1738838475667,0.49541182,98789.0,98788.0,0.00740999]
[1738838475803,0.49641182,98789.0,98788.0,0.00740999]
[1738838476007,0.49641182,98789.0,98788.0,0.027893]
[1738838476419,0.49541182,98789.0,98788.0,0.1519467]
[1738838476640,0.49541182,98789.0,98788.0,0.15924999]
[1738838476641,0.4651275,98789.0,98788.0,0.15924999]
[1738838479791,0.4651275,98789.0,98788.0,0.00740999]
[1738838480028,0.4651275,98789.0,98788.0,0.0001067]
[1738838480262,0.4651275,98789.0,98788.0,0.00740999]
[1738838480841,0.4651275,98789.0,98788.0,0.0001067]
[1738838481047,0.61051172,98789.0,98788.0,0.0001067]
[1738838482084,0.61351172,98789.0,98788.0,0.0001067]
[1738838482694,0.61951172,98789.0,98788.0,0.0011067]
[1738838482893,0.62151172,98789.0,98788.0,0.00839731]
[1738838483172,0.62151172,98789.0,98788.0,0.0011067]
[1738838483955,0.61251172,98789.0,98788.0,0.0001067]
[1738838484431,0.61551172,98789.0,98788.0,0.0001067]
[1738838484930,0.62051172,98789.0,98788.0,0.0011067]
[1738838485139,0.61141185,98789.0,98788.0,0.0011067]
[1738838485346,0.57349026,98789.0,98788.0,0.0001067]
[1738838485548,0.57149026,98789.0,98788.0,0.0001067]
[1738838486055,0.57549026,98789.0,98788.0,0.0001067]
[1738838486420,0.57449026,98789.0,98788.0,0.0001067]
[1738838486621,0.57549026,98789.0,98788.0,0.0001067]
[1738838487365,0.57149026,98789.0,98788.0,0.0001067]
[1738838487519,0.57649026,98789.0,98788.0,0.0011067]
[1738838487722,0.57649026,98789.0,98783.0,0.0001067]
[1738838488000,0.15,98778.0,98752.0,0.00022428]
[1738838488119,0.46250365,98769.0,98752.0,0.00022428]
[1738838488304,0.59070365,98769.0,98752.0,0.00022428]
[1738838488495,0.59978365,98769.0,98752.0,0.00022428]
[1738838488931,0.2302,98768.0,98765.0,6.95462335]
[1738838489169,0.33270365,98766.0,98765.0,6.95462335]
[1738838489708,0.18270365,98766.0,98765.0,6.95462335]
[1738838489914,0.18270365,98766.0,98765.0,6.97762335]
[1738838490115,0.18270365,98766.0,98765.0,6.95462335]
[1738838490325,0.28670365,98766.0,98765.0,6.95462335]
[1738838490770,0.23585386,98766.0,98765.0,6.95462335]
[1738838491579,0.24485386,98766.0,98765.0,6.95462335]
[1738838491810,0.23585386,98766.0,98765.0,6.95462335]
[1738838492015,0.23185386,98766.0,98765.0,6.95462335]